lending/lending_fUSD_20250508
["ID","MTS","AMOUNT","RATE_DAILY","PERIOD"]
[360332336,1746745856372,-400.0,0.00019995,2]
[360332337,1746745856383,-400.0,0.00019995,2]
[360332338,1746745856392,-400.0,0.00019995,2]
[360332339,1746745856402,-400.0,0.00019995,2]
[360332340,1746745856412,-400.0,0.00019995,2]
[360332341,1746745856422,-400.0,0.00019995,2]
[360332342,1746745856433,-670.41,0.00019995,2]
[360332343,1746745856443,-670.41,0.00019995,2]
[360332344,1746745856454,-670.41,0.00019995,2]
[360332345,1746745856465,-670.41,0.00019995,2]
[360332346,1746745856476,-1291.24,0.00019995,2]
[360332347,1746745856486,-1291.24,0.00019995,2]
[360332348,1746745856496,-1291.24,0.00019995,2]
[360332349,1746745856506,-1267.33,0.00019995,2]
[360332350,1746745856516,-1267.33,0.00019995,2]
[360332351,1746745856525,-1267.33,0.00019995,2]
[360332352,1746745856536,-1267.33,0.00019995,2]
[360332353,1746745856546,-400.0,0.00019995,2]
[360332354,1746745856556,-461.07,0.00019995,2]
[360332355,1746745856565,-400.0,0.00019995,2]
[360332356,1746745856575,-461.07,0.00019995,2]
[360332357,1746745856585,-400.0,0.00019995,2]
[360332358,1746745856594,-461.07,0.00019995,2]
[360332359,1746745856603,-400.0,0.00019995,2]
[360332360,1746745856613,-461.07,0.00019995,2]
[360332361,1746745856622,-1291.24,0.00019995,2]
[360332362,1746745856632,-150.80032787,0.00019995,2]
[360332363,1746745856641,-400.0,0.00019995,2]
[360332364,1746745856651,-400.0,0.00019995,2]
[360332365,1746745856660,-400.0,0.00019995,2]
[360332366,1746745856670,-400.0,0.00019995,2]
[360332367,1746745856680,-2621.52,0.00019995,2]
[360332368,1746745856690,-847.33,0.00019995,2]
[360332369,1746745856701,-847.33,0.00019995,2]
[360332370,1746745856711,-847.33,0.00019995,2]
[360332371,1746745856721,-2621.52,0.00019995,2]
[360332372,1746745856734,-847.33,0.00019995,2]
[360332373,1746745856744,-2621.52,0.00019995,2]
[360332374,1746745856753,-2621.52,0.00019995,2]
[360332375,1746745856763,-539.90351451,0.00019995,2]
[360332376,1746745856773,-400.0,0.00019995,2]
[360332377,1746745856783,-400.0,0.00019995,2]
[360332378,1746745856792,-400.0,0.00019995,2]
[360332379,1746745856802,-400.0,0.00019995,2]
[360332380,1746745856812,-686.96,0.00019995,2]
[360332381,1746745856822,-400.0,0.00019995,2]
[360332382,1746745856831,-400.0,0.00019995,2]
[360332383,1746745856841,-400.0,0.00019995,2]
[360332384,1746745856852,-262.54668564,0.00019995,2]
[360332385,1746745856861,-400.0,0.00019995,2]
[360332386,1746745856870,-400.0,0.00019995,2]
[360332387,1746745856880,-400.0,0.00019995,2]
[360332388,1746745856890,-118452.30648026,0.00019996,2]
[360332389,1746745857577,-2115.33182775,0.00019996,2]
[360332390,1746745857618,-269676.94027702,0.00019996,2]
[360332391,1746745858847,-400.0,0.00019984,2]
[360332392,1746745858859,-400.0,0.00019987,2]
[360332393,1746745858869,-200.54374282,0.00019987,2]
[360332394,1746745858879,-400.0,0.00019988,2]
[360332395,1746745858889,-400.0,0.00019988,2]
[360332396,1746745858899,-686.96,0.00019995,2]
[360332397,1746745858911,-686.96,0.00019995,2]
[360332398,1746745858920,-686.96,0.00019995,2]
[360332399,1746745858931,-9555.96292273,0.00019996,2]
[360332400,1746745858944,-18542.0001001,0.00019996,2]
[360332401,1746745858955,-10525.80594087,0.00019996,2]
[360332402,1746745858973,-408.92382811,0.00019996,2]
[360332403,1746745858985,-1127.02490741,0.00019996,2]
[360332404,1746745858996,-1349.628057,0.00019996,2]
[360332405,1746745859027,-467.26,0.00019984,2]
[360332406,1746745859036,-5206.62578977,0.00019996,2]
[360332407,1746745859819,-467.26,0.00019987,2]
[360332408,1746745859828,-467.26,0.00019987,2]
[360332409,1746745859838,-467.26,0.00019995,2]
[360332410,1746745859847,-467.26,0.00019995,2]
[360332411,1746745859856,-467.26,0.00019995,2]
[360332412,1746745859866,-467.26,0.00019995,2]
[360332413,1746745859876,-316.43819698,0.00019996,2]
[360332414,1746745859887,-8196.903563,0.00019996,2]
[360332415,1746745871767,1237.54479309,0.00019345,2]
[360332416,1746745871789,344.23520691,0.00019345,2]
[360332417,1746745879702,500.0,0.0003013,120]
[360332419,1746745940999,162248.0,0.0003,30]
[360332420,1746745977220,453.85,0.00030136,120]
[360332432,1746746238573,7200.0,0.000192,7]
[360332433,1746746240711,2455.76479309,0.000193,7]
[360332434,1746746240732,10000.0,0.000193,7]
[360332435,1746746240753,1944.23520691,0.000193,7]
[360332436,1746746243243,8055.76479309,0.000194,7]
[360332437,1746746243267,10000.0,0.000194,7]
[360332438,1746746243511,3544.23520691,0.000194,7]
[360332439,1746746244921,6455.76479309,0.000195,7]
[360332440,1746746244944,10000.0,0.000195,7]
[360332441,1746746244970,10000.0,0.000195,7]
[360332442,1746746244993,2344.23520691,0.000195,7]
[360332443,1746746252407,1000.0,0.00018935,2]
[360332444,1746746262746,155.06,0.00018917,2]
[360332445,1746746280581,6500.70479309,0.00018913,2]
[360332446,1746746280607,10000.0,0.00018913,2]
[360332447,1746746280630,10000.0,0.00018913,2]
[360332448,1746746280651,10000.0,0.00018913,2]
[360332449,1746746280674,10000.0,0.00018913,2]
[360332450,1746746280695,3197.76520691,0.00018913,2]
[360332451,1746746522922,1143.57,0.00018912,2]
[360332452,1746746523991,1143.57,0.00026004,120]
[360332453,1746746524130,1143.57,0.00028368,120]
[360332454,1746746535748,150.0,0.00018986,7]
[360332455,1746746557898,5508.66479309,0.00018938,2]
[360332456,1746746557920,10000.0,0.00018938,2]
[360332457,1746746557942,8391.33520691,0.00018938,2]
[360332458,1746746619301,1328.61,0.00017019,2]
[360332459,1746746619538,280.05479309,0.00019283,2]
[360332460,1746746619560,1048.55520691,0.00019283,2]
[360332462,1746746681522,262.63,0.0003,120]
[360332463,1746746687481,200.0,0.000189,2]
[360332464,1746746719568,153.13174332,0.00017975,2]
[360332465,1746746754379,8598.31304977,0.00015,10]
[360332466,1746746754401,6413.68695023,0.00015,10]
[360332467,1746746768135,202.0,0.00030136,120]
[360332468,1746746783479,250.0,0.00018925,2]
[360332469,1746746817612,2226.44054842,0.00015,14]
[360332470,1746746834462,332.63,0.00018919,2]
[360332471,1746746857219,777.24250135,0.000192,7]
[360332472,1746746857242,2822.75749865,0.000192,7]
[360332473,1746746859340,7177.24250135,0.000193,7]
[360332474,1746746859364,22.75749865,0.000193,7]
[360332475,1746746861437,9977.24250135,0.000194,7]
[360332476,1746746861459,822.75749865,0.000194,7]
[360332477,1746746863639,9177.24250135,0.000195,7]
[360332478,1746746863661,5222.75749865,0.000195,7]
[360332479,1746746877371,1117.44956568,0.00015,10]
[360332482,1746746936391,2000.0,0.0003,30]
[360332483,1746746969444,1009.61281275,0.00030136,120]
[360332484,1746746983748,250.0,0.00017,2]
[360332485,1746746984507,300.0,0.00019,2]
[360332500,1746747031730,-151.0,0.00019599,2]
[360332501,1746747031741,-211.08,0.00019599,2]
[360332502,1746747031753,-88.92,0.00019599,2]
[360332503,1746747031762,-1200.0,0.00019599,2]
[360332504,1746747031772,-300.0,0.00019599,2]
[360332505,1746747031782,-8772.02652804,0.000196,7]
[360332506,1746747031810,-1909.8079,0.000196,7]
[360332507,1746747031851,-861.57840189,0.000196,7]
[360332508,1746747031862,-6456.58717007,0.000196,7]
[360332509,1746747031871,-250.0,0.00019694,2]
[360332510,1746747031882,-3600.0,0.000197,7]
[360332511,1746747031891,-499.99999992,0.00019789,2]
[360332512,1746747031901,-787.0,0.00019799,2]
[360332513,1746747031910,-499.99999992,0.00019799,2]
[360332514,1746747031921,-26531.95176919,0.000198,5]
[360332549,1746747037896,-58550.23715025,0.000198,5]
[360332550,1746747037906,-1910.0,0.000198,2]
[360332551,1746747037916,-1000.0,0.000198,2]
[360332552,1746747037927,-1061.0,0.000198,2]
[360332553,1746747037936,-3600.0,0.000198,7]
[360332554,1746747037946,-1101.49761781,0.00019851,2]
[360332555,1746747037955,-1101.49761781,0.00019868,2]
[360332556,1746747037965,-207.4,0.00019872,2]
[360332557,1746747037974,-158.03810936,0.00019881,2]
[360332558,1746747037984,-158.03810934,0.00019884,2]
[360332559,1746747037996,-3700.71178884,0.00019884,2]
[360332560,1746747038005,-470.60862177,0.00019884,2]
[360332561,1746747038014,-291.64855248,0.00019884,2]
[360332562,1746747038023,-224.92194487,0.00019884,2]
[360332563,1746747038032,-4139.54653494,0.00019884,2]
[360332646,1746747040172,-7491.18486506,0.00019884,2]
[360332647,1746747040182,-579.4307,0.00019884,2]
[360332648,1746747040192,-3700.71178884,0.00019884,2]
[360332649,1746747040201,-3700.71178884,0.00019885,2]
[360332650,1746747040211,-3700.71178884,0.00019885,2]
[360332651,1746747040221,-3700.71178884,0.00019886,2]
[360332652,1746747040231,-158.03810934,0.00019886,2]
[360332653,1746747040240,-3700.71178884,0.00019886,2]
[360332654,1746747040251,-3700.71178884,0.00019887,2]
[360332655,1746747040263,-299.0215938,0.000199,2]
[360332656,1746747040272,-3600.0,0.000199,7]
[360332657,1746747040283,-151.0,0.00019971,2]
[360332658,1746747040293,-151.0,0.00019971,2]
[360332659,1746747040302,-668.65185757,0.00019971,2]
[360332660,1746747040312,-203.29,0.00019971,2]
[360332661,1746747040322,-500.0,0.00019973,2]
[360332662,1746747040331,-500.0,0.00019973,2]
[360332663,1746747040341,-400.0,0.0001998,2]
[360332664,1746747040351,-400.0,0.0001998,2]
[360332665,1746747040360,-547.7793387,0.0001998,2]
[360332666,1746747040370,-400.0,0.0001998,2]
[360332667,1746747040379,-400.0,0.0001998,2]
[360332668,1746747040389,-400.0,0.0001998,2]
[360332669,1746747040398,-400.0,0.0001998,2]
[360332670,1746747040408,-454.35823485,0.0001998,2]
[360332671,1746747040417,-400.0,0.0001998,2]
[360332672,1746747040427,-400.0,0.0001998,2]
[360332673,1746747040437,-400.0,0.0001998,2]
[360332674,1746747040446,-400.0,0.0001998,2]
[360332675,1746747040456,-500.61178287,0.0001998,2]
[360332676,1746747040466,-400.0,0.0001998,2]
[360332677,1746747040475,-400.0,0.0001998,2]
[360332678,1746747040484,-400.0,0.0001998,2]
[360332679,1746747040494,-400.0,0.0001998,2]
[360332680,1746747040505,-400.0,0.0001998,2]
[360332681,1746747040515,-400.0,0.0001998,2]
[360332682,1746747040524,-400.0,0.0001998,2]
[360332683,1746747040533,-400.0,0.0001998,2]
[360332684,1746747040543,-2496.6,0.0001998,2]
[360332685,1746747040552,-642.48,0.0001998,2]
[360332686,1746747040562,-545.15963195,0.0001998,2]
[360332687,1746747040571,-1350.54,0.0001998,2]
[360332688,1746747040580,-400.0,0.0001998,2]
[360332689,1746747040589,-400.0,0.0001998,2]
[360332690,1746747040599,-400.0,0.0001998,2]
[360332691,1746747040608,-401.8,0.0001998,2]
[360332692,1746747040617,-400.0,0.0001998,2]
[360332693,1746747040626,-731.83,0.0001998,2]
[360332694,1746747040636,-400.0,0.0001998,2]
[360332695,1746747040645,-400.0,0.00019981,2]
[360332696,1746747040655,-400.0,0.00019981,2]
[360332697,1746747040664,-400.0,0.00019981,2]
[360332698,1746747040673,-400.0,0.00019981,2]
[360332699,1746747040683,-400.0,0.00019981,2]
[360332700,1746747040694,-504.41274605,0.00019981,2]
[360332701,1746747040704,-400.0,0.00019981,2]
[360332702,1746747040713,-400.0,0.00019981,2]
[360332703,1746747040722,-400.0,0.00019981,2]
[360332704,1746747040732,-400.0,0.00019981,2]
[360332705,1746747040741,-400.0,0.00019981,2]
[360332706,1746747040756,-400.0,0.00019981,2]
[360332707,1746747040765,-400.0,0.00019981,2]
[360332708,1746747040774,-500.0,0.00019981,2]
[360332709,1746747040784,-400.0,0.00019981,2]
[360332710,1746747040794,-400.0,0.00019981,2]
[360332711,1746747040803,-400.0,0.00019981,2]
[360332712,1746747040812,-509.81812726,0.00019981,2]
[360332713,1746747040822,-400.0,0.00019981,2]
[360332714,1746747040832,-259.44475316,0.00019981,2]
[360332715,1746747040846,-400.0,0.00019981,2]
[360332716,1746747040856,-400.0,0.00019981,2]
[360332717,1746747040865,-400.0,0.00019981,2]
[360332718,1746747040874,-174.20659225,0.00019981,2]
[360332719,1746747040885,-968.2,0.00019981,2]
[360332720,1746747040895,-1251.11,0.00019981,2]
[360332721,1746747040904,-400.0,0.00019981,2]
[360332722,1746747040915,-400.0,0.00019981,2]
[360332723,1746747040924,-400.0,0.00019981,2]
[360332724,1746747040933,-400.0,0.00019981,2]
[360332725,1746747040942,-1260.23,0.00019981,2]
[360332726,1746747040952,-155.880471,0.00019981,2]
[360332727,1746747040962,-400.0,0.00019981,2]
[360332728,1746747040972,-400.0,0.00019981,2]
[360332729,1746747040982,-400.0,0.00019981,2]
[360332730,1746747040992,-245.51785886,0.00019981,2]
[360332731,1746747041004,-1677.958642,0.00019981,2]
[360332732,1746747041015,-400.0,0.00019981,2]
[360332733,1746747041025,-400.0,0.00019981,2]
[360332734,1746747041035,-1489.63,0.00019981,2]
[360332735,1746747041044,-400.0,0.00019981,2]
[360332736,1746747041055,-400.0,0.00019981,2]
[360332737,1746747041065,-400.0,0.00019981,2]
[360332738,1746747041074,-400.0,0.00019981,2]
[360332739,1746747041084,-5528.44,0.00019981,2]
[360332740,1746747041093,-403.63954104,0.00019981,2]
[360332741,1746747041103,-9968.120092,0.00019981,2]
[360332742,1746747041114,-400.0,0.00019981,2]
[360332743,1746747041124,-203.45035829,0.00019981,2]
[360332744,1746747041133,-3407.25,0.00019981,2]
[360332745,1746747041143,-814.54,0.00019981,2]
[360332746,1746747041152,-400.0,0.00019981,2]
[360332747,1746747041161,-195.28955756,0.00019981,2]
[360332748,1746747041171,-400.0,0.00019981,2]
[360332749,1746747041181,-235.65297099,0.00019981,2]
[360332750,1746747041190,-400.0,0.00019981,2]
[360332751,1746747041200,-400.0,0.00019981,2]
[360332752,1746747041209,-1252.55,0.00019981,2]
[360332753,1746747041219,-752.6,0.00019981,2]
[360332754,1746747041228,-400.0,0.00019981,2]
[360332755,1746747041238,-345.42032689,0.00019981,2]
[360332756,1746747041248,-1023.64,0.00019981,2]
[360332757,1746747041264,-156.696154,0.00019981,2]
[360332758,1746747041273,-1070.84,0.00019981,2]
[360332759,1746747041283,-877.9,0.00019981,2]
[360332760,1746747041292,-400.0,0.00019981,2]
[360332761,1746747041302,-400.0,0.00019981,2]
[360332762,1746747041311,-856.47,0.00019981,2]
[360332763,1746747041321,-1738.22,0.00019981,2]
[360332764,1746747041330,-400.0,0.00019981,2]
[360332765,1746747041340,-400.0,0.00019981,2]
[360332766,1746747041349,-664.14,0.00019981,2]
[360332767,1746747041359,-664.14,0.00019981,2]
[360332768,1746747041368,-688.96,0.00019981,2]
[360332769,1746747041377,-688.96,0.00019981,2]
[360332770,1746747041386,-2482.88,0.00019981,2]
[360332771,1746747041396,-1346.85,0.00019981,2]
[360332772,1746747041406,-489.14,0.00019981,2]
[360332773,1746747041416,-1346.85,0.00019981,2]
[360332774,1746747041425,-400.0,0.00019981,2]
[360332775,1746747041435,-400.0,0.00019981,2]
[360332776,1746747041444,-500.0,0.00019981,2]
[360332777,1746747041454,-191.8720556,0.00019981,2]
[360332778,1746747041464,-500.0,0.00019981,2]
[360332779,1746747041474,-500.0,0.00019981,2]
[360332780,1746747041483,-500.0,0.00019981,2]
[360332781,1746747041493,-500.0,0.00019981,2]
[360332782,1746747041505,-500.0,0.00019981,2]
[360332783,1746747041514,-236.8497644,0.00019981,2]
[360332784,1746747041524,-500.0,0.00019981,2]
[360332785,1746747041533,-500.0,0.00019981,2]
[360332786,1746747041544,-500.0,0.00019981,2]
[360332787,1746747041554,-500.0,0.00019981,2]
[360332788,1746747041564,-500.0,0.00019981,2]
[360332789,1746747041574,-500.0,0.00019981,2]
[360332790,1746747041583,-500.0,0.00019981,2]
[360332791,1746747041593,-500.0,0.00019981,2]
[360332792,1746747041603,-576.25116216,0.00019981,2]
[360332793,1746747041612,-500.0,0.00019981,2]
[360332794,1746747041622,-500.0,0.00019981,2]
[360332795,1746747041631,-500.0,0.00019981,2]
[360332796,1746747041641,-500.0,0.00019981,2]
[360332797,1746747041649,-500.0,0.00019981,2]
[360332798,1746747041659,-500.0,0.00019981,2]
[360332799,1746747041668,-500.0,0.00019981,2]
[360332800,1746747041678,-500.0,0.00019981,2]
[360332801,1746747041687,-500.0,0.00019981,2]
[360332802,1746747041697,-500.0,0.00019981,2]
[360332803,1746747041706,-500.0,0.00019981,2]
[360332804,1746747041716,-500.0,0.00019981,2]
[360332805,1746747041726,-500.0,0.00019981,2]
[360332806,1746747041735,-500.0,0.00019981,2]
[360332807,1746747041745,-500.0,0.00019981,2]
[360332808,1746747041757,-500.0,0.00019981,2]
[360332809,1746747041767,-500.0,0.00019981,2]
[360332810,1746747041776,-3059.49,0.00019981,2]
[360332811,1746747041787,-400.0,0.00019981,2]
[360332812,1746747041797,-400.0,0.00019981,2]
[360332813,1746747041807,-649.21,0.00019981,2]
[360332814,1746747041817,-826.67,0.00019981,2]
[360332815,1746747041826,-826.67,0.00019981,2]
[360332816,1746747041836,-1419.29,0.00019981,2]
[360332817,1746747041847,-1419.29,0.00019981,2]
[360332818,1746747041856,-517.12944921,0.00019981,2]
[360332819,1746747041866,-400.0,0.00019981,2]
[360332820,1746747041875,-484.63432275,0.00019981,2]
[360332821,1746747041887,-450.42,0.00019981,2]
[360332822,1746747041896,-450.42,0.00019981,2]
[360332823,1746747041908,-400.0,0.00019981,2]
[360332824,1746747041918,-400.0,0.00019981,2]
[360332825,1746747041928,-343.91359792,0.00019981,2]
[360332826,1746747041939,-399.47944,0.00019981,2]
[360332827,1746747041948,-500.0,0.00019981,2]
[360332828,1746747041958,-500.0,0.00019981,2]
[360332829,1746747041968,-500.0,0.00019981,2]
[360332830,1746747041978,-500.0,0.00019981,2]
[360332831,1746747041988,-500.0,0.00019981,2]
[360332832,1746747041999,-500.0,0.00019981,2]
[360332833,1746747042009,-500.0,0.00019981,2]
[360332834,1746747042019,-500.0,0.00019981,2]
[360332835,1746747042029,-500.0,0.00019981,2]
[360332836,1746747042039,-500.0,0.00019981,2]
[360332837,1746747042049,-500.0,0.00019981,2]
[360332838,1746747042058,-500.0,0.00019981,2]
[360332839,1746747042068,-577.69662238,0.00019981,2]
[360332840,1746747042078,-500.0,0.00019981,2]
[360332841,1746747042087,-500.0,0.00019981,2]
[360332842,1746747042097,-500.0,0.00019981,2]
[360332843,1746747042107,-2120.61,0.00019981,2]
[360332844,1746747042116,-400.0,0.00019981,2]
[360332845,1746747042125,-1164.97,0.00019981,2]
[360332846,1746747042135,-1164.97,0.00019981,2]
[360332847,1746747042144,-1359.4,0.00019981,2]
[360332848,1746747042154,-1359.4,0.00019981,2]
[360332849,1746747042164,-400.0,0.00019981,2]
[360332850,1746747042173,-320.8399457,0.00019981,2]
[360332851,1746747042182,-2675.62,0.00019981,2]
[360332852,1746747042191,-400.0,0.00019981,2]
[360332853,1746747042201,-400.0,0.00019981,2]
[360332854,1746747042211,-400.0,0.00019981,2]
[360332855,1746747042220,-234.52876107,0.00019981,2]
[360332856,1746747042230,-500.0,0.00019981,2]
[360332857,1746747042240,-500.0,0.00019981,2]
[360332858,1746747042251,-250.0,0.00019981,2]
[360332859,1746747042260,-500.0,0.00019981,2]
[360332860,1746747042270,-400.0,0.00019981,2]
[360332861,1746747042280,-500.0,0.00019981,2]
[360332862,1746747042291,-500.0,0.00019981,2]
[360332863,1746747042300,-500.0,0.00019981,2]
[360332864,1746747042309,-500.0,0.00019981,2]
[360332865,1746747042319,-290.22393151,0.00019981,2]
[360332866,1746747042329,-500.0,0.00019981,2]
[360332867,1746747042338,-500.0,0.00019981,2]
[360332868,1746747042348,-912.74,0.00019981,2]
[360332869,1746747042357,-500.0,0.00019981,2]
[360332870,1746747042367,-500.0,0.00019981,2]
[360332871,1746747042376,-500.0,0.00019981,2]
[360332872,1746747042386,-912.74,0.00019981,2]
[360332873,1746747042395,-500.0,0.00019981,2]
[360332874,1746747042405,-500.0,0.00019981,2]
[360332876,1746747042414,-711.29,0.00019981,2]
[360332877,1746747042423,-711.29,0.00019981,2]
[360332879,1746747042432,-400.0,0.00019981,2]
[360332880,1746747042442,-400.0,0.00019981,2]
[360332882,1746747042451,-400.0,0.00019981,2]
[360332884,1746747042460,-400.0,0.00019981,2]
[360332886,1746747042470,-5076.17,0.00019981,2]
[360332887,1746747042480,-5076.17,0.00019981,2]
[360332888,1746747042490,-1506.47,0.00019981,2]
[360332889,1746747042500,-1506.47,0.00019981,2]
[360332890,1746747042510,-502.30700617,0.00019981,2]
[360332891,1746747042520,-400.0,0.00019981,2]
[360332892,1746747042530,-500.0,0.00019981,2]
[360332893,1746747042539,-500.0,0.00019981,2]
[360332894,1746747042549,-500.0,0.00019981,2]
[360332895,1746747042558,-500.0,0.00019981,2]
[360332896,1746747042568,-500.0,0.00019981,2]
[360332897,1746747042578,-500.0,0.00019981,2]
[360332898,1746747042587,-500.0,0.00019981,2]
[360332899,1746747042597,-500.0,0.00019981,2]
[360332900,1746747042606,-400.0,0.00019981,2]
[360332901,1746747042616,-400.0,0.00019981,2]
[360332902,1746747042625,-191.76356341,0.00019981,2]
[360332903,1746747042634,-606.2,0.00019981,2]
[360332904,1746747042644,-629.24,0.00019981,2]
[360332905,1746747042654,-606.2,0.00019981,2]
[360332906,1746747042663,-629.24,0.00019981,2]
[360332907,1746747042673,-1430.59,0.00019981,2]
[360332908,1746747042682,-562.26,0.00019981,2]
[360332909,1746747042691,-400.0,0.00019981,2]
[360332911,1746747042701,-400.0,0.00019981,2]
[360332912,1746747042710,-400.0,0.00019981,2]
[360332913,1746747042719,-400.0,0.00019981,2]
[360332914,1746747042729,-400.0,0.00019981,2]
[360332915,1746747042738,-400.0,0.00019981,2]
[360332916,1746747042747,-400.0,0.00019981,2]
[360332917,1746747042758,-1791.1,0.00019981,2]
[360332918,1746747042767,-400.0,0.00019981,2]
[360332919,1746747042777,-400.0,0.00019981,2]
[360332921,1746747042786,-1387.3,0.00019981,2]
[360332922,1746747042795,-400.0,0.00019981,2]
[360332923,1746747042804,-400.0,0.00019981,2]
[360332924,1746747042813,-1214.52,0.00019981,2]
[360332925,1746747042823,-1214.52,0.00019981,2]
[360332926,1746747042832,-400.0,0.00019981,2]
[360332927,1746747042842,-400.0,0.00019981,2]
[360332928,1746747042853,-400.0,0.00019981,2]
[360332929,1746747042863,-228.00277985,0.00019981,2]
[360332930,1746747042872,-400.0,0.00019981,2]
[360332931,1746747042881,-351.0389768,0.00019981,2]
[360332932,1746747042891,-400.0,0.00019981,2]
[360332933,1746747042900,-1334.51,0.00019981,2]
[360332934,1746747042909,-248.85189301,0.00019981,2]
[360332935,1746747042919,-1052.15,0.00019981,2]
[360332936,1746747042928,-1052.15,0.00019981,2]
[360332937,1746747042937,-400.0,0.00019981,2]
[360332938,1746747042947,-153.13410021,0.00019981,2]
[360332939,1746747042956,-400.0,0.00019981,2]
[360332940,1746747042965,-2049.58,0.00019981,2]
[360332941,1746747042974,-400.0,0.00019981,2]
[360332942,1746747042983,-400.0,0.00019981,2]
[360332943,1746747042992,-3715.0,0.00019981,2]
[360332944,1746747043002,-1237.43,0.00019981,2]
[360332945,1746747043011,-572.46,0.00019981,2]
[360332946,1746747043021,-572.46,0.00019981,2]
[360332947,1746747043030,-400.0,0.00019981,2]
[360332948,1746747043039,-400.0,0.00019981,2]
[360332949,1746747043048,-400.0,0.00019981,2]
[360332950,1746747043057,-1237.43,0.00019981,2]
[360332951,1746747043066,-400.0,0.00019981,2]
[360332952,1746747043075,-400.0,0.00019981,2]
[360332953,1746747043085,-400.0,0.00019981,2]
[360332954,1746747043094,-400.0,0.00019981,2]
[360332955,1746747043103,-400.0,0.00019981,2]
[360332956,1746747043112,-150.80032787,0.00019981,2]
[360332957,1746747043122,-180.4829207,0.00019981,2]
[360332958,1746747043131,-1045.48,0.00019981,2]
[360332959,1746747043140,-400.0,0.00019981,2]
[360332961,1746747043149,-400.0,0.00019981,2]
[360332962,1746747043159,-400.0,0.00019981,2]
[360332963,1746747043168,-1904.36,0.00019981,2]
[360332964,1746747043178,-400.0,0.00019981,2]
[360332965,1746747043187,-400.0,0.00019981,2]
[360332966,1746747043196,-1904.36,0.00019981,2]
[360332967,1746747043206,-400.0,0.00019981,2]
[360332968,1746747043215,-918.22,0.00019981,2]
[360332969,1746747043224,-233.16042521,0.00019981,2]
[360332970,1746747043234,-400.0,0.00019981,2]
[360332971,1746747043243,-292.56709995,0.00019981,2]
[360332972,1746747043254,-500.0,0.00019981,2]
[360332973,1746747043264,-400.0,0.00019981,2]
[360332974,1746747043273,-150.0,0.00019981,2]
[360332975,1746747043283,-400.0,0.00019981,2]
[360332977,1746747043292,-400.0,0.00019981,2]
[360332979,1746747043302,-2512.29,0.00019981,2]
[360332981,1746747043312,-2512.29,0.00019981,2]
[360332983,1746747043321,-400.0,0.00019981,2]
[360332985,1746747043331,-400.0,0.00019981,2]
[360332987,1746747043340,-330.68466382,0.00019981,2]
[360332988,1746747043350,-400.0,0.00019981,2]
[360332989,1746747043359,-400.0,0.00019981,2]
[360332990,1746747043369,-400.0,0.00019981,2]
[360332991,1746747043378,-400.0,0.00019981,2]
[360332992,1746747043388,-913.68,0.00019981,2]
[360332993,1746747043398,-2496.6,0.00019981,2]
[360332994,1746747043407,-2496.6,0.00019981,2]